bitfinex/quotes_BTCUSD_20250714
["timestamp","ask_amount","ask_price","bid_price","bid_amount"]
[1752494774995,0.00015312,121520.0,121510.0,3.32505054]
[1752494775221,0.00015312,121520.0,121510.0,3.72571354]
[1752494775441,0.00015312,121520.0,121510.0,3.16594654]
[1752494775659,0.00015312,121520.0,121510.0,3.22374954]
[1752494775885,0.00334312,121520.0,121510.0,3.31059754]
[1752494776100,0.00015312,121520.0,121510.0,3.30459254]
[1752494776322,0.00015312,121520.0,121510.0,3.32588554]
[1752494776604,0.00015312,121520.0,121510.0,3.36152654]
[1752494776791,0.00015312,121520.0,121510.0,3.19152654]
[1752494777038,0.00015312,121520.0,121510.0,3.02515103]
[1752494777728,0.00015312,121520.0,121510.0,2.85515303]
[1752494778164,0.00015312,121520.0,121510.0,2.66312103]
[1752494778403,0.00015312,121520.0,121510.0,2.79160103]
[1752494778823,0.00015312,121520.0,121510.0,1.36971903]
[1752494779032,0.00015312,121520.0,121510.0,3.36261903]
[1752494779258,0.00015312,121520.0,121510.0,2.96869903]
[1752494779471,0.00015312,121520.0,121510.0,3.09717903]
[1752494779928,0.00015312,121520.0,121510.0,4.98568803]
[1752494780149,0.00015312,121520.0,121510.0,5.14021003]
[1752494780352,0.00015312,121520.0,121510.0,5.7501279]
[1752494780561,0.00015312,121520.0,121510.0,5.4904159]
[1752494780771,0.00015312,121520.0,121510.0,5.2000739]
[1752494781032,0.00015312,121520.0,121510.0,4.5552479]
[1752494781232,0.00015312,121520.0,121510.0,5.2345659]
[1752494781417,0.00015312,121520.0,121510.0,5.9703229]
[1752494781662,0.00015312,121520.0,121510.0,5.9388849]
[1752494781866,0.00015312,121520.0,121510.0,5.1704009]
[1752494782073,0.00015312,121520.0,121510.0,5.03394003]
[1752494782293,0.00015312,121520.0,121510.0,4.98142103]
[1752494782500,0.00015312,121520.0,121510.0,3.74828203]
[1752494782710,0.00334312,121520.0,121510.0,3.74828203]
[1752494782950,0.00334312,121520.0,121510.0,3.67328203]
[1752494783148,0.00015312,121520.0,121510.0,3.74828203]
[1752494783363,0.00015312,121520.0,121510.0,3.94725603]
[1752494784474,0.00015312,121520.0,121510.0,4.31350103]
[1752494785328,0.00015312,121520.0,121510.0,4.24311303]
[1752494785543,0.00015312,121520.0,121510.0,4.03788803]
[1752494786186,1e-08,121520.0,121510.0,3.90940803]
[1752494786398,1e-08,121520.0,121510.0,6.37392003]
[1752494786851,1e-08,121520.0,121510.0,6.24548003]
[1752494787071,1e-08,121520.0,121510.0,6.3982159]
[1752494787292,1e-08,121520.0,121510.0,6.24648003]
[1752494787501,1e-08,121520.0,121510.0,6.37492003]
[1752494787719,1e-08,121520.0,121510.0,4.77046303]
[1752494787933,1e-08,121520.0,121510.0,4.31628903]
[1752494788135,1e-08,121520.0,121510.0,4.31928903]
[1752494788522,1e-08,121520.0,121510.0,5.12731503]
[1752494788913,1e-08,121520.0,121510.0,5.45935541]
[1752494789122,1e-08,121520.0,121510.0,4.79392641]
[1752494789337,1e-08,121520.0,121510.0,1.71096041]
[1752494789560,1e-08,121520.0,121510.0,5.77691341]
[1752494790588,1e-08,121520.0,121510.0,6.68078528]
[1752494790808,1e-08,121520.0,121510.0,6.12190628]
[1752494791258,1e-08,121520.0,121510.0,6.09661041]
[1752494791474,1e-08,121520.0,121510.0,5.87156341]
[1752494791683,1e-08,121520.0,121510.0,5.89076441]
[1752494792734,1e-08,121520.0,121510.0,1.71096041]
[1752494792934,1e-08,121520.0,121510.0,6.08513041]
[1752494793375,1e-08,121520.0,121510.0,4.26847741]
[1752494793796,1e-08,121520.0,121510.0,5.14910241]
[1752494794003,1e-08,121520.0,121510.0,4.93739741]
[1752494794219,1e-08,121520.0,121510.0,5.02109741]
[1752494794862,1e-08,121520.0,121510.0,5.27037741]
[1752494795045,1e-08,121520.0,121510.0,5.17076041]
[1752494795243,1e-08,121520.0,121510.0,5.09576041]
[1752494795486,1e-08,121520.0,121510.0,5.17076041]
[1752494795913,1e-08,121520.0,121510.0,5.59096941]
[1752494796888,1e-08,121520.0,121510.0,6.39714741]
[1752494797088,1e-08,121520.0,121510.0,6.37709741]
[1752494797303,1e-08,121520.0,121510.0,6.33657441]
[1752494797877,1e-08,121520.0,121510.0,6.71092041]
[1752494798300,1e-08,121520.0,121510.0,6.66594941]
[1752494798514,1e-08,121520.0,121510.0,6.49651241]
[1752494798718,1e-08,121520.0,121510.0,5.93216141]
[1752494798935,1e-08,121520.0,121510.0,1.71092041]
[1752494799220,1e-08,121520.0,121510.0,5.91370441]
[1752494799433,1e-08,121520.0,121510.0,5.85737041]
[1752494800085,1e-08,121520.0,121510.0,1.71092041]
[1752494800290,1e-08,121520.0,121510.0,6.17420841]
[1752494801046,1e-08,121520.0,121510.0,6.40144041]
[1752494801461,1e-08,121520.0,121510.0,6.17594941]
[1752494801993,1e-08,121520.0,121510.0,6.64865341]
[1752494802231,1e-08,121520.0,121510.0,6.46993141]
[1752494802438,1e-08,121520.0,121510.0,6.34807341]
[1752494803073,1e-08,121520.0,121510.0,1.71092041]
[1752494803385,1e-08,121520.0,121510.0,6.45420641]
[1752494803772,0.00515001,121520.0,121510.0,5.30633841]
[1752494803994,1e-08,121520.0,121510.0,5.30633841]
[1752494804331,1e-08,121520.0,121510.0,6.13322341]
[1752494805335,1e-08,121520.0,121510.0,6.61080941]
[1752494805867,1e-08,121520.0,121510.0,6.36903441]
[1752494806304,1e-08,121520.0,121510.0,6.40717441]
[1752494806632,1e-08,121520.0,121510.0,6.34512241]
[1752494806828,1e-08,121520.0,121510.0,6.27078541]
[1752494807035,0.00307001,121520.0,121510.0,6.00541841]
[1752494807269,1e-08,121520.0,121510.0,1.71092041]
[1752494807474,1e-08,121520.0,121510.0,6.01541641]
[1752494808287,1e-08,121520.0,121510.0,1.58252041]
[1752494808486,1e-08,121520.0,121510.0,6.57673541]
[1752494808635,1e-08,121520.0,121510.0,6.56428741]
[1752494808868,0.00105063,121530.0,121520.0,0.71416843]
[1752494809132,0.00327469,121530.0,121520.0,6.21918901]
[1752494809335,0.00420469,121530.0,121520.0,4.73675114]
[1752494809661,0.00420469,121530.0,121520.0,4.76140514]
[1752494810073,0.00113469,121530.0,121520.0,4.76440514]
[1752494810199,0.00113469,121530.0,121520.0,4.63604514]
[1752494810415,0.00113469,121530.0,121520.0,5.40518314]
[1752494810618,0.03597,121540.0,121530.0,0.5930937]
[1752494810812,0.07071,121540.0,121530.0,3.53180861]
[1752494811064,0.07071,121540.0,121530.0,3.60680861]
[1752494811490,0.07071,121540.0,121530.0,3.79220861]
[1752494811891,0.07071,121540.0,121530.0,3.81686261]
[1752494812257,0.07071,121540.0,121530.0,3.63541561]
[1752494812435,0.07071,121540.0,121530.0,3.86279761]
[1752494812640,0.07071,121540.0,121530.0,3.88765873]
[1752494813053,0.07071,121540.0,121530.0,3.81265873]
[1752494813257,0.07071,121540.0,121530.0,3.73736773]
[1752494813416,0.07071,121540.0,121530.0,3.82511373]
[1752494813757,0.07071,121540.0,121530.0,3.90643107]
[1752494814072,0.07071,121540.0,121530.0,3.75011373]
[1752494814293,0.07071,121540.0,121530.0,3.55688173]
[1752494814500,0.07071,121540.0,121530.0,3.70189873]
[1752494814646,0.07071,121540.0,121530.0,3.77689873]
[1752494815089,0.00521,121540.0,121530.0,3.77689873]
[1752494815303,0.0675,121550.0,121540.0,0.25307813]
[1752494815508,0.07271,121550.0,121540.0,3.50160171]
[1752494815799,0.07271,121550.0,121540.0,2.78087171]
[1752494816187,0.07271,121550.0,121540.0,2.45641691]
[1752494816402,0.07271,121550.0,121540.0,2.68012971]
[1752494816622,0.07271,121550.0,121540.0,2.60512971]
[1752494816759,0.07271,121550.0,121540.0,1.21195071]
[1752494817113,0.07371,121550.0,121540.0,2.78886871]
[1752494817320,0.07471,121550.0,121540.0,2.78886871]
[1752494817553,0.07471,121550.0,121540.0,2.62543871]
[1752494817673,0.07471,121550.0,121540.0,2.60883071]
[1752494819295,0.07471,121550.0,121540.0,2.28437591]
[1752494820038,0.07471,121550.0,121540.0,1.95992111]
[1752494820234,0.00707,121550.0,121540.0,1.55195071]
[1752494820515,0.0335,121570.0,121560.0,0.00822591]
[1752494820748,0.06609327,121570.0,121560.0,2.25105744]
[1752494820975,0.06609327,121570.0,121560.0,1.40905872]
[1752494821190,0.06609327,121570.0,121560.0,1.61831072]
[1752494821409,0.06609327,121570.0,121560.0,1.51094372]
[1752494821625,0.06609327,121570.0,121560.0,1.55959572]
[1752494821836,0.06609327,121570.0,121560.0,1.68787572]
[1752494822037,0.06609327,121570.0,121560.0,1.68994572]
[1752494822285,0.0301,121580.0,121570.0,0.27873143]
[1752494822469,0.033,121590.0,121580.0,0.65347502]
[1752494822470,0.06617,121590.0,121580.0,0.65347502]
[1752494822671,0.06831,121590.0,121580.0,1.18755693]
[1752494824028,0.0631,121590.0,121580.0,1.0897128]
[1752494824231,0.0631,121590.0,121580.0,1.2179928]
[1752494824449,0.06831,121590.0,121580.0,1.2128528]
[1752494824653,0.06831,121590.0,121580.0,1.29417014]
[1752494824871,0.06831,121590.0,121580.0,1.21917014]
[1752494825072,0.06831,121590.0,121580.0,1.29417014]
[1752494825486,0.06831,121590.0,121580.0,1.26887427]
[1752494825902,0.06831,121590.0,121580.0,1.21957427]
[1752494827405,0.06831,121590.0,121580.0,0.82396616]
[1752494827617,0.06831,121590.0,121580.0,1.14842096]
[1752494829123,0.06831,121590.0,121580.0,0.69568616]
[1752494829339,0.06831,121590.0,121580.0,0.65423678]
[1752494829561,0.06831,121590.0,121580.0,0.84949188]
[1752494829813,0.06831,121590.0,121580.0,0.39]
[1752494830000,0.07653375,121590.0,121580.0,0.47322503]
[1752494830221,0.06831,121590.0,121580.0,0.53488993]
[1752494830460,0.06831,121590.0,121580.0,0.76616577]
[1752494830666,0.0847577,121590.0,121580.0,0.25348]
[1752494830883,0.09298179,121590.0,121580.0,0.25348]
[1752494831316,0.0847577,121590.0,121580.0,0.33841755]
[1752494831748,0.08475763,121590.0,121580.0,0.25348]
[1752494831988,0.09298165,121590.0,121580.0,0.25348]
[1752494832228,0.08475763,121590.0,121580.0,0.5779348]
[1752494832498,0.09298165,121590.0,121580.0,0.5779348]
[1752494832688,0.07653375,121590.0,121580.0,0.25348]
[1752494832920,0.07653375,121590.0,121580.0,0.25336]
[1752494832921,0.09298172,121590.0,121580.0,0.25336]
[1752494833369,0.09298172,121590.0,121580.0,0.33006054]
[1752494833606,0.08475763,121590.0,121580.0,0.33006054]
[1752494833818,0.09298165,121590.0,121580.0,0.33006054]
[1752494834255,0.09298158,121590.0,121580.0,0.33006054]
[1752494834470,0.10120567,121590.0,121580.0,0.33006054]
[1752494834683,0.10942989,121590.0,121580.0,0.33006054]
[1752494834894,0.10120614,121590.0,121580.0,0.25336]
[1752494835354,0.10943043,121590.0,121580.0,0.25336]
[1752494835564,0.10120621,121590.0,121580.0,0.125]
[1752494835781,0.10120614,121590.0,121580.0,0.25332]
[1752494835998,0.59014815,121590.0,121580.0,0.05]
[1752494836228,0.57370032,121590.0,121580.0,0.17828]
[1752494836437,0.24924552,121590.0,121580.0,0.12828]
[1752494836649,0.2596242,121590.0,121580.0,0.12828]
[1752494837327,0.25140011,121590.0,121580.0,0.12828]
[1752494837939,0.24317589,121590.0,121580.0,0.12828]
[1752494838173,0.24017589,121590.0,121580.0,0.12828]
[1752494838604,0.04664939,121580.0,121570.0,0.415]
[1752494838836,0.23281959,121580.0,121570.0,0.34]
[1752494839053,0.0481504,121570.0,121560.0,0.34822639]
[1752494839270,0.0501304,121570.0,121560.0,0.42322639]
[1752494839491,0.0451451,121570.0,121560.0,0.65468406]
[1752494839707,0.04498061,121570.0,121560.0,0.79937663]
[1752494839910,0.04498061,121570.0,121560.0,0.66291038]
[1752494840146,0.04698061,121570.0,121560.0,0.78292406]
[1752494840354,0.05520578,121570.0,121560.0,1.11560511]
[1752494840775,0.04698061,121570.0,121560.0,1.12383129]
[1752494840986,0.04698061,121570.0,121560.0,1.12383122]
[1752494841197,0.04698061,121570.0,121560.0,1.00381727]
[1752494841198,0.03875551,121570.0,121560.0,1.00381727]
[1752494841409,0.07065551,121570.0,121560.0,1.13209727]
[1752494841619,0.07065551,121570.0,121560.0,1.12387122]
[1752494841827,0.07065551,121570.0,121560.0,1.13209713]
[1752494842056,0.07065551,121570.0,121560.0,0.80764233]
[1752494842267,0.07065551,121570.0,121560.0,1.12387122]
[1752494842478,0.07065551,121570.0,121560.0,0.80764247]
[1752494842709,0.07065551,121570.0,121560.0,1.13209727]
[1752494842922,0.07065551,121570.0,121560.0,1.14032325]
[1752494843334,0.07065551,121570.0,121560.0,1.05709727]
[1752494843540,0.07065551,121570.0,121560.0,1.13209727]
[1752494843996,0.07065551,121570.0,121560.0,1.14032325]
[1752494844214,0.07065551,121570.0,121560.0,0.97913872]
[1752494844430,0.07065551,121570.0,121560.0,1.11564483]
[1752494844865,0.07888061,121570.0,121560.0,1.1156449]
[1752494845756,0.08710578,121570.0,121560.0,0.97913872]
[1752494845976,0.09533101,121570.0,121560.0,1.11564518]
[1752494846409,0.07065551,121570.0,121560.0,1.1320972]
[1752494846648,0.07065551,121570.0,121560.0,1.0038172]
[1752494846855,0.07065551,121570.0,121560.0,1.1320972]
[1752494847065,0.07065551,121570.0,121560.0,0.8076424]
[1752494847274,0.07065551,121570.0,121560.0,1.1320972]
[1752494847687,0.07065551,121570.0,121560.0,1.0038172]
[1752494847866,0.07065551,121570.0,121560.0,1.1320972]
[1752494849691,0.07065551,121570.0,121560.0,1.0038172]
[1752494849876,0.07065551,121570.0,121560.0,1.41156911]
[1752494849877,0.002,121570.0,121560.0,1.41156911]
[1752494850104,0.002,121570.0,121560.0,1.53984911]
[1752494850674,0.002,121570.0,121560.0,2.50158098]
[1752494850849,0.002,121570.0,121560.0,2.37514498]
[1752494851049,0.002,121570.0,121560.0,2.42444498]
[1752494851257,0.002,121570.0,121560.0,2.55272498]
[1752494851452,0.002,121570.0,121560.0,2.52518798]
[1752494851659,0.002,121570.0,121560.0,2.51038798]
[1752494852535,0.002,121570.0,121560.0,1.67869498]
[1752494852757,0.002,121570.0,121560.0,2.93447398]
[1752494853187,0.002,121570.0,121560.0,2.94901483]
[1752494853376,0.06694,121600.0,121590.0,0.26415947]
[1752494853592,0.06892,121600.0,121590.0,0.73531075]
[1752494854344,0.06892,121600.0,121590.0,0.41085602]
[1752494854558,0.06892,121600.0,121590.0,0.73531089]
[1752494854768,0.06892,121600.0,121590.0,0.74353484]
[1752494855096,0.06892,121600.0,121590.0,0.73531089]
[1752494855303,0.07192,121600.0,121590.0,0.73531089]
[1752494855504,0.07192,121600.0,121590.0,0.74353484]
[1752494855763,0.07192,121600.0,121590.0,0.73531089]
[1752494855977,0.07192,121600.0,121590.0,0.39436798]
[1752494856191,0.07192,121600.0,121590.0,0.598807]
[1752494856410,0.0643,121580.0,121570.0,0.075]
[1752494856630,0.07774442,121580.0,121570.0,0.71597991]
[1752494856850,0.06952,121580.0,121570.0,1.04866022]
[1752494857067,0.07774442,121580.0,121570.0,0.8676948]
[1752494857281,0.06952,121580.0,121570.0,1.04043478]
[1752494857489,0.06952,121580.0,121570.0,1.04866042]
[1752494857850,0.06952,121580.0,121570.0,1.0651113]
[1752494858067,0.06952,121580.0,121570.0,1.07333653]
[1752494859612,0.06952,121580.0,121570.0,0.94509653]
[1752494859827,0.06852,121580.0,121570.0,1.07333653]
[1752494860271,0.06762,121580.0,121570.0,1.07333653]
[1752494860937,0.06762,121580.0,121570.0,0.94509653]
[1752494861169,0.06762,121580.0,121570.0,1.07333653]
[1752494862236,0.04844689,121600.0,121580.0,0.17272505]
[1752494862436,0.03722,121590.0,121580.0,0.50540481]
[1752494862639,0.03722,121590.0,121580.0,0.6500944]
[1752494862821,0.06802,121590.0,121580.0,0.64186964]
[1752494863048,0.06802,121590.0,121580.0,0.65831909]
[1752494863196,0.06802,121590.0,121580.0,0.6500944]
[1752494863399,0.06802,121590.0,121580.0,0.64186964]
[1752494864110,0.06802,121590.0,121580.0,0.6500944]
[1752494864314,0.07002,121590.0,121580.0,0.6500944]
[1752494864559,0.07002,121590.0,121580.0,0.65831909]
[1752494864735,0.07002,121590.0,121580.0,0.65831862]
[1752494864952,0.03802,121590.0,121580.0,0.65831862]
[1752494865267,0.00722,121590.0,121580.0,0.66026862]
[1752494866980,0.00722,121590.0,121580.0,0.33581382]
[1752494867195,0.00722,121590.0,121580.0,0.66026862]
[1752494868231,0.002,121590.0,121580.0,0.74161573]
[1752494869110,0.002,121590.0,121580.0,1.15661573]
[1752494869287,0.002,121590.0,121580.0,1.02837573]
[1752494869503,0.002,121590.0,121580.0,1.15661573]
[1752494869711,0.002,121590.0,121580.0,1.22177573]
[1752494869937,0.002,121590.0,121580.0,0.86266093]
[1752494870149,0.002,121590.0,121580.0,1.15661573]
[1752494870583,0.002,121590.0,121580.0,1.02837573]
[1752494870789,0.002,121590.0,121580.0,1.15661573]
[1752494873012,0.07086,121590.0,121580.0,1.04864461]
[1752494873446,0.07086,121590.0,121580.0,1.05686937]
[1752494873650,0.07086,121590.0,121580.0,1.07331856]
[1752494873865,0.07086,121590.0,121580.0,0.86458404]
[1752494874072,0.07086,121590.0,121580.0,0.71686937]
[1752494874275,0.07086,121590.0,121580.0,0.73331856]
[1752494874918,0.07086,121590.0,121580.0,0.60507856]
[1752494875143,0.00716,121590.0,121580.0,0.73539856]
[1752494876592,0.00402,121590.0,121580.0,0.68854567]
[1752494876818,0.002,121590.0,121580.0,0.81674567]
[1752494877045,0.002,121590.0,121580.0,0.84694567]
[1752494877441,0.002,121590.0,121580.0,0.81674567]
[1752494877897,0.002,121590.0,121580.0,1.15674567]
[1752494881880,0.00716,121590.0,121580.0,1.15674567]
[1752494882107,0.04036,121590.0,121580.0,1.02642567]
[1752494882334,0.04036,121590.0,121580.0,1.15462567]
[1752494882565,0.04036,121590.0,121580.0,1.14640104]
[1752494883098,0.002,121590.0,121580.0,1.14852104]
[1752494886427,0.002,121590.0,121580.0,1.02032104]
[1752494886649,0.002,121590.0,121580.0,1.14852104]
[1752494887079,0.002,121590.0,121580.0,1.08538104]
[1752494887288,0.002,121590.0,121580.0,1.21358104]
[1752494887470,0.002,121590.0,121580.0,1.23822704]
[1752494887678,0.00051081,121600.0,121590.0,0.21415947]
[1752494887899,0.00051081,121600.0,121590.0,1.52919618]
[1752494888130,0.00051081,121600.0,121590.0,1.55449205]
[1752494888345,0.00051081,121600.0,121590.0,1.85721605]
[1752494888985,0.00051081,121600.0,121590.0,1.18910661]
[1752494889196,0.00251081,121600.0,121590.0,1.70272088]
[1752494889669,0.00251081,121600.0,121590.0,1.57452088]
[1752494889883,0.00251081,121600.0,121590.0,1.70272088]
[1752494890079,0.00251081,121600.0,121590.0,1.72736488]
[1752494890290,0.00251081,121600.0,121590.0,1.59916488]
[1752494890512,0.00051081,121600.0,121590.0,1.72736488]
[1752494890765,0.00051081,121600.0,121590.0,1.59916488]
[1752494890971,0.00051081,121600.0,121590.0,1.72736488]
[1752494891838,0.00051081,121600.0,121590.0,1.72836488]
[1752494892519,0.00051081,121600.0,121590.0,1.79216573]
[1752494893197,0.00051081,121600.0,121590.0,1.66400573]
[1752494893457,0.00051081,121600.0,121590.0,1.79216573]
[1752494893678,0.00051081,121600.0,121590.0,1.66400573]
[1752494893819,0.00051081,121600.0,121590.0,1.79216573]
[1752494894019,0.00051081,121600.0,121590.0,5.66656373]
[1752494894227,0.00051081,121600.0,121590.0,5.61167373]
[1752494894437,0.00051081,121600.0,121590.0,5.48280973]
[1752494895072,0.00051081,121600.0,121590.0,5.54377573]
[1752494895928,0.00051081,121600.0,121590.0,1.62314773]
[1752494896166,0.06754,121630.0,121620.0,0.19332363]
[1752494896359,0.06967318,121630.0,121620.0,0.76470722]
[1752494896561,0.06967318,121630.0,121620.0,0.81470722]
[1752494896771,0.06967318,121630.0,121620.0,0.49025242]
[1752494896946,0.06967318,121630.0,121620.0,0.82489287]
[1752494897370,0.00515318,121630.0,121620.0,0.69868287]
[1752494897602,0.00515318,121630.0,121620.0,1.06397874]
[1752494897885,0.00515318,121630.0,121620.0,1.21654482]
[1752494898085,0.08091436,121630.0,121620.0,0.47104906]
[1752494898319,0.25356926,121630.0,121620.0,0.12816]
[1752494898527,0.18911293,121620.0,121610.0,0.364643]
[1752494898731,0.02138404,121620.0,121610.0,0.39421083]
[1752494898966,0.02138404,121620.0,121610.0,0.46816]
[1752494899131,0.08568404,121620.0,121610.0,0.52237083]
[1752494899497,0.08074499,121610.0,121590.0,0.21869804]
[1752494899723,0.07450314,121600.0,121590.0,0.024646]
[1752494899932,0.07746321,121600.0,121590.0,0.20558186]
[1752494900120,0.07746321,121600.0,121590.0,0.18237083]
[1752494900346,0.07746321,121600.0,121590.0,0.30087157]
[1752494900560,0.07746321,121600.0,121590.0,0.36330669]
[1752494900783,0.07746321,121600.0,121590.0,1.01953713]
[1752494901018,0.06924,121600.0,121590.0,1.0359855]
[1752494901230,0.07124,121600.0,121590.0,1.05243361]
[1752494901441,0.07124,121600.0,121590.0,1.04420959]
[1752494901661,0.07124,121600.0,121590.0,0.98999876]
[1752494901878,0.07124,121600.0,121590.0,0.92427347]
[1752494902097,0.07124,121600.0,121590.0,1.05243347]
[1752494902966,0.002,121600.0,121590.0,1.05438347]
[1752494904696,0.002,121600.0,121590.0,1.13573058]
[1752494905136,0.002,121600.0,121590.0,2.10731725]
[1752494905348,0.002,121600.0,121590.0,1.90569725]
[1752494905784,0.002,121600.0,121590.0,2.03521725]
[1752494906474,0.00694,121600.0,121590.0,0.74541578]
[1752494906692,0.002,121600.0,121590.0,1.16849058]
[1752494906905,0.09222543,121620.0,121610.0,0.008223]
[1752494907139,0.10242728,121620.0,121610.0,0.4539348]
[1752494907347,0.08598351,121620.0,121610.0,0.52728675]
[1752494907571,0.06954,121620.0,121610.0,0.7081925]
[1752494907776,0.06954,121620.0,121610.0,0.5787125]
[1752494907987,0.06954,121620.0,121610.0,0.70819257]
[1752494908204,0.07254,121620.0,121610.0,0.70819257]
[1752494908601,0.07254,121620.0,121610.0,0.67650494]
[1752494908843,0.00794,121620.0,121610.0,0.80793494]
[1752494910068,0.00494,121620.0,121610.0,0.80793494]
[1752494910265,0.00694,121620.0,121610.0,0.80793494]
[1752494911174,0.00694,121620.0,121610.0,0.67845494]
[1752494911395,0.00694,121620.0,121610.0,1.20206577]
[1752494911605,0.00694,121620.0,121610.0,1.14785494]
[1752494911757,0.00694,121620.0,121610.0,1.20206577]
[1752494911983,0.002,121620.0,121610.0,1.20206577]
[1752494912413,0.002,121620.0,121610.0,1.07573577]
[1752494912627,0.002,121620.0,121610.0,1.26859577]
[1752494912781,0.002,121620.0,121610.0,1.29323777]
[1752494913458,0.00511318,121630.0,121620.0,0.5291128]
[1752494913667,0.00709318,121630.0,121620.0,1.05735577]
[1752494913867,0.00709318,121630.0,121620.0,0.92172392]
[1752494914036,0.00709318,121630.0,121620.0,1.05735584]
[1752494914037,0.03989318,121630.0,121620.0,1.05735584]
[1752494914244,0.03989318,121630.0,121620.0,0.93621769]
[1752494914477,0.03989318,121630.0,121620.0,1.06557769]
[1752494914719,0.03989318,121630.0,121620.0,0.72090555]
[1752494914878,0.04189318,121630.0,121620.0,1.04536035]
[1752494915092,0.00415318,121630.0,121620.0,1.12865746]
[1752494915260,0.00415318,121630.0,121620.0,0.99929746]
[1752494915461,0.00415318,121630.0,121620.0,1.12861746]
[1752494915830,0.00415318,121630.0,121620.0,0.67484266]
[1752494916033,0.00415318,121630.0,121620.0,1.17791746]
[1752494916242,0.00415318,121630.0,121620.0,1.20255646]
[1752494921222,0.00415318,121630.0,121620.0,1.07323646]
[1752494921454,0.00415318,121630.0,121620.0,1.20243646]
[1752494921919,0.00415318,121630.0,121620.0,1.07323646]
[1752494922130,0.00415318,121630.0,121620.0,1.20243646]
[1752494923209,0.00415318,121630.0,121620.0,0.87798166]
[1752494923415,0.00415318,121630.0,121620.0,1.20243646]
[1752494924028,0.00415318,121630.0,121620.0,1.1545538]
[1752494924271,0.00415318,121630.0,121620.0,1.07323646]
[1752494924479,0.00415318,121630.0,121620.0,1.20235646]
[1752494925939,0.00415318,121630.0,121620.0,1.20542646]
[1752494926157,0.00415318,121630.0,121620.0,1.07323646]
[1752494926380,0.00415318,121630.0,121620.0,0.87790166]
[1752494926595,0.00415318,121630.0,121620.0,1.20235646]
[1752494929150,0.00415318,121630.0,121620.0,1.20243646]
[1752494929372,0.00415318,121630.0,121620.0,1.07323646]
[1752494929590,0.00415318,121630.0,121620.0,1.20243646]
[1752494930666,0.00415318,121630.0,121620.0,1.21222985]
[1752494931557,0.00415318,121630.0,121620.0,1.51289137]
[1752494931767,0.00415318,121630.0,121620.0,6.17672537]
[1752494931989,0.00415318,121630.0,121620.0,6.04760537]
[1752494932417,0.00415318,121630.0,121620.0,6.17680537]
[1752494932636,0.00215318,121630.0,121620.0,6.17680537]
[1752494932862,0.00215318,121630.0,121620.0,5.99418177]
[1752494933072,0.00215318,121630.0,121620.0,6.64309137]
[1752494933490,0.00215318,121630.0,121620.0,6.64509137]
[1752494934161,0.00215318,121630.0,121620.0,7.13659137]
[1752494934368,0.00215318,121630.0,121620.0,7.13751137]
[1752494936284,0.00215318,121630.0,121620.0,7.13755137]
[1752494936946,0.00215318,121630.0,121620.0,7.00839137]
[1752494937168,0.00215318,121630.0,121620.0,7.13759137]
[1752494940873,0.00215318,121630.0,121620.0,7.00839137]
[1752494941119,0.00215318,121630.0,121620.0,1.99958277]
[1752494941355,0.00215318,121630.0,121620.0,1.70375685]
[1752494941589,0.00215318,121630.0,121620.0,1.16201902]
[1752494941590,0.00747318,121630.0,121620.0,1.16201902]
[1752494941875,0.23650629,121630.0,121620.0,0.16419694]
[1752494942092,0.58562523,121630.0,121620.0,0.004]
[1752494942336,0.59707778,121630.0,121620.0,0.004]
[1752494942566,0.25294925,121630.0,121620.0,0.13332]
[1752494943029,0.25294925,121630.0,121620.0,0.13032]
[1752494943255,0.07207318,121630.0,121620.0,0.05521083]
[1752494943485,0.08951554,121630.0,121620.0,0.18449083]
[1752494943706,0.08851554,121630.0,121620.0,0.18349083]
[1752494943921,0.09051554,121630.0,121620.0,0.18349083]
[1752494944167,0.07407318,121630.0,121620.0,0.43412947]
[1752494944457,0.07407318,121630.0,121620.0,0.32129352]
[1752494944683,0.07407318,121630.0,121620.0,0.45053352]
[1752494944899,0.07407318,121630.0,121620.0,0.45875537]
[1752494945111,0.07407318,121630.0,121620.0,0.32951537]
[1752494945371,0.07407318,121630.0,121620.0,0.85673813]
[1752494946994,0.07407318,121630.0,121620.0,0.84851628]
[1752494947444,0.07407318,121630.0,121620.0,0.85673813]
[1752494949891,0.07407318,121630.0,121620.0,0.8567382]
[1752494950781,0.07407318,121630.0,121620.0,0.84005429]
[1752494950973,0.07407318,121630.0,121620.0,0.84827628]
[1752494951711,0.08229422,121630.0,121620.0,0.71105429]
[1752494951944,0.0318,121620.0,121610.0,0.88352916]
[1752494952186,0.06524,121620.0,121610.0,0.65646355]
[1752494952414,0.07664172,121620.0,121610.0,0.79364628]
[1752494952640,0.06842,121620.0,121610.0,0.79364628]
[1752494952870,0.06842,121620.0,121610.0,0.80182888]
[1752494953099,0.06842,121620.0,121610.0,0.81005141]
[1752494953583,0.06942,121620.0,121610.0,1.11846459]
[1752494953804,0.06942,121620.0,121610.0,1.12668712]
[1752494954037,0.06942,121620.0,121610.0,1.12660712]
[1752494954267,0.06942,121620.0,121610.0,1.12688712]
[1752494954509,0.03812,121620.0,121610.0,1.12688712]
[1752494954699,0.00632,121620.0,121610.0,1.12684712]
[1752494954978,0.00632,121620.0,121610.0,0.62692064]
[1752494955212,0.00632,121620.0,121610.0,1.12684712]
[1752494955448,0.00632,121620.0,121610.0,0.81021147]
[1752494955664,0.00632,121620.0,121610.0,1.12684712]
[1752494956359,0.03732,121620.0,121610.0,1.12684712]
[1752494956586,0.03732,121620.0,121610.0,0.99776712]
[1752494956812,0.03732,121620.0,121610.0,1.12704712]
[1752494957279,0.03732,121620.0,121610.0,0.81041147]
[1752494957478,0.03732,121620.0,121610.0,1.12704712]
[1752494957734,0.03732,121620.0,121610.0,0.99776712]
[1752494957965,0.03732,121620.0,121610.0,1.12700712]
[1752494958156,0.00632,121620.0,121610.0,0.99776712]
[1752494958603,0.03802,121620.0,121610.0,0.99776712]
[1752494958827,0.03802,121620.0,121610.0,1.12696712]
[1752494961025,0.03802,121620.0,121610.0,1.12692712]
[1752494961694,0.03802,121620.0,121610.0,0.75608064]
[1752494961916,0.03802,121620.0,121610.0,1.12692712]
[1752494962143,0.03802,121620.0,121610.0,1.12688712]
[1752494962371,0.03802,121620.0,121610.0,1.07287629]
[1752494962817,0.03802,121620.0,121610.0,1.12708712]
[1752494963042,0.03802,121620.0,121610.0,1.1345808]
[1752494964437,0.03802,121620.0,121610.0,1.1345008]
[1752494965333,0.00632,121620.0,121610.0,1.1345008]
[1752494967414,0.00632,121620.0,121610.0,0.81252147]
[1752494967862,0.00632,121620.0,121610.0,1.1366508]
[1752494968304,0.00632,121620.0,121610.0,2.07693182]